[Event "Israeli Team-ch 2023"]
[Site "Petah Tikva"]
[Date "2023.02.03"]
[Round "5.9"]
[White "Liubarov, Mark"]
[Black "Mikhalevski, Victor"]
[Result "0-1"]
[ECO "E08"]
[WhiteElo "2291"]
[BlackElo "2516"]
[Annotator "TA"]
[PlyCount "182"]
[EventDate "2023.01.13"]
[EventCountry "ISR"]
[SourceTitle "playchess.com"]
[Source "ChessBase"]
[SourceQuality "1"]
[TimeControl "40/5400+30:1800+30"]

{[%evp 17,182,27,22,10,10,17,19,24,14,-30,-29,-66,-35,-48,-62,-94,-79,-72,-36,-37,-31,-26,7,7,0,-80,-74,-84,-83,-87,-74,-105,-46,-66,-64,-36,-32,-31,0,-71,-64,-105,-140,-105,-40,-110,-105,-279,-265,-205,-198,-660,-654,26,-607,-614,-608,-585,-568,-554,-548,-443,-439,-397,0,0,14,14,21,14,14,14,14,14,16,20,38,-12833,-12833,-12832,-12832,-5512,-1675,-12821,-10040,-1411,-1124,-12835,-12838,-12841,-12839,-12839,-1920,-12839,-12839,-12841,-12841,-12842,-12843,-12843,-12843,-12844,-12844,-12848,-12848,-12850,-12850,-12850,-27999,-27999,-27999,-27999,-27999,-27999,-27999,-27999,-27999,-27999,-27999,-27999,-27999,-27999,-27999,-27999,-27999,-27973,-27999,-27976,-27999,-27977,-27999,-27978,-27999,-27979,-27999,-27977,-27999,-27977,-27999,-27978,-27999,-27980,-27999,-27981,-27999,-27982,-27999,-27983,-27999,-27984,-27999,-27988,-27999,-27989,-27999,-27990,-27999,-27991,-27999,-27992,-27999,-27992,-27999,-27993,-27999,-27994,-27999]} 1. d4 {[%emt 0:09:15]} d5 {[%emt 0:00:24]} 2. c4 {[%emt 0:00:04]} e6 {[%emt 0:00:05]} 3. Nf3 {[%emt 0:00:14]} Nf6 {[%emt 0:00:24]} 4. g3 {[%emt 0:00:06]} Be7 {[%emt 0:00:21]} 5. Bg2 {[%emt 0:00:07]} O-O {[%emt 0:00:07]} 6. O-O {[%emt 0:00:48]} Nbd7 {[%emt 0:00:15]} 7. Qc2 {[%emt 0:01:32]} c6 {[%emt 0:00:08]} 8. Rd1 {[%emt 0:02:00]} b6 {[%emt 0:00:10][%cal Bb7b6,Bb6b5,Bb5b4][%mdl 32]} 9. b3 {[%emt 0:04:56]} Ba6 {[%emt 0:01:29]} 10. a4 {[%emt 0:04:30] E08: Closed Catalan: Main Line: 7 Qc2.} Rc8 {[%emt 0:19:55] [#]} 11. a5 $1 {[%emt 0:09:05]} b5 {[%emt 0:03:31][%cal Rb5c4]} 12. c5 {[%emt 0:22:23] The position is equal.} b4 $1 {[%emt 0:00:16] [#]} 13. Re1 $146 {[%emt 0:03:39]} ({Predecessor:} 13. e3 Qc7 14. Nbd2 e5 15. Nxe5 Nxe5 16. dxe5 Qxe5 17. Bb2 Qh5 18. Nf3 Ne4 19. Bd4 {½-½ Shabalov,A (2504)-Kunka,H (2236) Hollywood Masters op 2022 (1)}) 13... Ne4 {[%emt 0:01:18]} 14. Bd2 {[%emt 0:04:38]} Nxd2 $1 {[%emt 0:18:30]} 15. Qxd2 {[%emt 0:05:30] [#]} e5 $1 {[%emt 0:03:33][%mdl 64] Deflection} 16. dxe5 {[%emt 0:05:28]} (16. Nxe5 Nxe5) 16... Nxc5 {[%emt 0:01:28]} (16... Bxc5 $6 17. Qc2 $11) 17. Qc2 {[%emt 0:01:32]} f6 {[%emt 0:11:26]} 18. Nbd2 {[%emt 0:04:03]} fxe5 {[%emt 0:02:35]} 19. Nxe5 {[%emt 0:00:54]} Qd6 {[%emt 0:00:09]} (19... Kh8 $5 {[%cal Re7d6]}) 20. f4 {[%emt 0:06:32]} Bf6 {[%emt 0:05:01]} (20... g5 $5 21. e3 $8 Nd7 $11) 21. Ndf3 {[%emt 0:00:18]} (21. Rad1 $11) 21... Ne4 $17 {[%emt 0:02:45]} 22. Rad1 {[%emt 0:04:35][%cal Oc2e4]} Nc3 $36 {[%emt 0:00:54][%mdl 2048] Black is on the roll.} 23. Rd2 {[%emt 0:00:27]} Rce8 {[%emt 0:02:20]} 24. Kh1 {[%emt 0:02:14][%cal Oe2e4]} Bxe5 {[%emt 0:01:48]} ({Black should play} 24... Qc7 $17 {aiming for ...Bc8.} 25. Bh3 c5) 25. Nxe5 $15 {[%emt 0:00:58]} Rxe5 {[%emt 0:00:17]} 26. fxe5 {[%emt 0:00:01]} Qxe5 {[%emt 0:00:08]} 27. e3 {[%emt 0:02:44]} Re8 {[%emt 0:06:09][%cal Od5d4]} 28. Rf2 {[%emt 0:00:24]} (28. Bf1 $1 $11 {keeps the balance.} Bxf1 29. Rxf1) 28... d4 $1 $17 {[%emt 0:02:52]} 29. Qf5 {[%emt 0:03:08]} (29. Bxc6 d3 30. Qb2 Rd8 $11) 29... Qxf5 30. Rxf5 {[%emt 0:00:01]} c5 {[%emt 0:11:58]} (30... Rxe3 31. Rxe3 dxe3 32. Re5 $16 (32. Bxc6 e2 $14)) ({Black should try} 30... Bb5 $17 31. h4 g6) 31. Kg1 {[%emt 0:01:06]} (31. Rxc5 d3 32. Rd5 Nxd5 33. Bxd5+ Kf8 $17) (31. Bc6 $1 $15 Re6 32. Bd7 (32. Rxc5 $2 d3 $19)) 31... d3 $1 {[%emt 0:02:41] Black is more active.} 32. Bd5+ $2 {[%emt 0:01:55]} (32. Rxc5 $2 d2 33. Bd5+ Kh8 $19) (32. Rf2 $17 {was the only defense.}) 32... Kh8 $19 {[%emt 0:00:36]} 33. Ref1 {[%emt 0:00:47] Rf8+ would kill now.} g6 $1 {[%emt 0:00:15]} 34. Rf8+ {[%emt 0:00:06]} (34. Rf6 Nxd5 35. Rxa6) 34... Rxf8 {[%emt 0:00:03]} 35. Rxf8+ {[%emt 0:00:02][%mdl 4096] Endgame KRB-KBN} Kg7 {[%emt 0:00:05]} 36. Rd8 {[%emt 0:01:00]} d2 {[%emt 0:01:16]} 37. Bf3 {[%emt 0:00:25]} Be2 $1 {[%emt 0:00:09]} 38. Rxd2 {[%emt 0:00:44]} Bxf3 {[%emt 0:00:06]} 39. Rd7+ {[%emt 0:00:05]} Kf6 {[%emt 0:00:20][%cal Oc5c4]} 40. Rxa7 {[%emt 0:00:12][%cal Oa7c7] [#]} Ke6 $2 {[%emt 0:03:53]} (40... c4 $1 $19 {[%cal Rc4b3]} 41. bxc4 (41. Kf2 $2 cxb3 42. Ra6+ Ke5 $19) 41... Na4) 41. a6 $1 $11 {[%emt 0:08:12]} (41. Rxh7 $2 c4 42. bxc4 (42. Kf2 cxb3 43. g4 b2 $19) 42... b3 $19) 41... Nb5 {[%emt 0:07:19]} 42. Rxh7 {[%emt 0:12:03]} c4 {[%emt 0:08:14] [#]} 43. Rb7 $1 {[%emt 0:04:08][%mdl 64] Promotion} Bc6 {[%emt 0:14:11]} (43... Bxb7 $2 44. axb7 cxb3 45. b8=Q $18 (45. b8=B b2 46. Kf2 b1=Q 47. h3 b3 48. g4 b2 49. Bh2 Qh1 50. g5 Qxh2+ 51. Kf3 b1=Q 52. e4 Qf1+ 53. Kg4 Qhxh3#)) 44. Rb6 $1 {[%emt 0:01:03]} Kd6 {[%emt 0:01:39]} 45. a7 $1 {[%emt 0:00:54]} (45. bxc4 $2 Kc5 46. Rb8 (46. Rxb5+ $2 Bxb5 47. cxb5 Kb6 $19) 46... Kxc4 $19) 45... Nxa7 {[%emt 0:00:11] ...Kc5 is the strong threat.} 46. Rxb4 {[%emt 0:00:33]} (46. bxc4 $2 {is the wrong capture.} Kc5 47. Rb8 (47. Ra6 $2 b3 $19) 47... Kxc4 $19) 46... c3 {[%emt 0:00:01] Hoping for ...Bd5.} (46... cxb3 {simplifies} 47. Rxb3 Bd5 48. Rb6+ Nc6) 47. Rd4+ {[%emt 0:00:09][%mdl 8192] [#]} (47. Rc4 $14) 47... Bd5 $1 $19 {[%emt 0:00:12]} 48. Rd1 {[%emt 0:04:50]} c2 {[%emt 0:00:46]} 49. Rc1 {[%emt 0:03:37]} Be4 {[%emt 0:00:05]} 50. Kf2 {[%emt 0:00:21]} Kc5 {[%emt 0:00:01]} 51. g4 {[%emt 0:00:18]} Nc6 {[%emt 0:00:15] ...Na5 would be deadly.} 52. Kg3 {[%emt 0:00:33]} Nb4 {[%emt 0:00:46]} 53. Kh4 {[%emt 0:00:34]} Kd5 {[%emt 0:00:44]} 54. Kg5 {[%emt 0:00:18]} Ke6 {[%emt 0:00:24]} (54... Na2 $142 55. Rg1 c1=Q 56. Rxc1 Nxc1) 55. h4 {[%emt 0:00:15]} Na2 {[%emt 0:00:04]} 56. Rf1 {[%emt 0:01:26]} Bd3 {[%emt 0:00:38]} 57. Ra1 {[%emt 0:00:25]} c1=Q {[%emt 0:00:30]} ({Worse is} 57... c1=R 58. Rxa2 Rg1 59. Rd2 $11) 58. Rxc1 {[%emt 0:00:01]} Nxc1 {[%emt 0:00:06]} 59. b4 {[%emt 0:00:05]} Kf7 {[%emt 0:00:08]} 60. h5 {[%emt 0:01:21]} gxh5 {[%emt 0:00:06]} 61. gxh5 {[%emt 0:00:05]} Na2 {[%emt 0:00:04]} 62. Kf4 {[%emt 0:00:24]} Nxb4 {[%emt 0:00:18]} 63. Ke5 {[%emt 0:00:03] Against Nd5. Black mates.} Bh7 {[%emt 0:00:47]} 64. e4 {[%emt 0:00:09]} Ke7 {[%emt 0:00:07]} 65. Kf4 {[%emt 0:00:14]} Nd3+ {[%emt 0:00:06]} 66. Ke3 {[%emt 0:00:09]} Ne5 {[%emt 0:00:22]} 67. Kf4 {[%emt 0:00:05]} Kf6 {[%emt 0:00:04]} 68. Ke3 {[%emt 0:00:03]} Kg5 {[%emt 0:00:08]} 69. Kd4 {[%emt 0:00:04]} Kf4 {[%emt 0:00:06]} 70. h6 {[%emt 0:00:04]} Bxe4 {[%emt 0:00:05]} 71. h7 {[%emt 0:00:02]} Bxh7 {[%emt 0:00:06]} 72. Kc3 {[%emt 0:00:02]} Ke3 {[%emt 0:00:06][%cal Bf4e3,Be3d4,Bd4c4,Bc4d3,Bd3d2,Bd2c3][%mdl 32]} 73. Kb3 {[%emt 0:00:13]} Kd4 {[%emt 0:00:08]} 74. Kb2 {[%emt 0:00:07]} Kc4 {[%emt 0:00:06]} 75. Ka3 {[%emt 0:00:06]} Bc2 {[%emt 0:00:08]} 76. Kb2 {[%emt 0:00:09]} Kd3 {[%emt 0:00:09]} 77. Kc1 {[%emt 0:00:09]} Nc6 {[%emt 0:00:33][%cal Be5c6,Bc6d4,Bd4b3][%mdl 32]} 78. Kb2 {[%emt 0:00:04]} Kd2 {[%emt 0:00:04]} 79. Ka2 {[%emt 0:00:04]} Kc3 {[%emt 0:00:05]} 80. Ka1 {[%emt 0:00:09]} Nd4 {[%emt 0:00:05]} 81. Ka2 {[%emt 0:00:17]} Nb3 {[%emt 0:00:05]} 82. Ka3 {[%emt 0:00:14]} Bb1 {[%emt 0:00:03]} 83. Ka4 {[%emt 0:00:02]} Nd4 {[%emt 0:00:04]} 84. Ka3 {[%emt 0:00:06]} Nb5+ {[%emt 0:00:04]} 85. Ka4 {[%emt 0:00:04]} Kc4 {[%emt 0:00:03]} 86. Ka5 {[%emt 0:00:03]} Kc5 {[%emt 0:00:03]} 87. Ka4 {[%emt 0:00:04]} Bc2+ {[%emt 0:00:03]} 88. Ka5 {[%emt 0:00:03]} Bb3 {[%emt 0:00:03]} 89. Ka6 {[%emt 0:00:04]} Nd6 {[%emt 0:00:03]} 90. Ka5 {[%emt 0:00:04]} Nb7+ {[%emt 0:00:03]} 91. Ka6 {[%emt 0:00:05]} Kc6 {[%emt 0:00:03] Weighted Error Value: White=0.67/Black=0.21 (precise)} 0-1

[Event "Israeli Team-ch 2023"]
[Site "Petah Tikva"]
[Date "2023.02.03"]
[Round "5.10"]
[White "Kobo, Ori"]
[Black "Shohat, Yotam"]
[Result "0-1"]
[ECO "B23"]
[WhiteElo "2546"]
[BlackElo "2284"]
[Annotator "TA"]
[PlyCount "114"]
[EventDate "2023.01.13"]
[EventCountry "ISR"]
[SourceTitle "playchess.com"]
[Source "ChessBase"]
[SourceQuality "1"]
[TimeControl "40/5400+30:1800+30"]

{[%evp 9,114,14,28,12,29,17,22,7,20,20,16,18,43,43,43,51,67,65,80,56,74,76,200,178,170,108,146,146,140,141,138,146,140,140,147,140,160,160,154,155,160,160,160,142,141,144,143,142,144,144,149,119,147,114,121,117,121,114,116,77,101,104,101,102,141,80,115,52,52,52,52,53,53,0,0,0,0,-73,-66,-68,-92,-72,-105,-92,0,-148,-168,-172,-153,-789,-805,-4670,-3645,-29976,-29977,-29977,-29977,-29977,-29978,-29978,-29979,-29978,-29977,-352,-29982,-29978,-10122]} 1. e4 {[%emt 0:00:06]} c5 {[%emt 0:08:04]} 2. Nc3 {[%emt 0:00:14]} Nc6 {[%emt 0:00:57]} 3. Bb5 {[%emt 0:00:24]} Nd4 {[%emt 0:00:07]} 4. Nf3 {[%emt 0:01:07]} a6 {[%emt 0:01:41]} 5. Bd3 {[%emt 0:00:15]} Nc6 {[%emt 0:01:16]} 6. O-O {[%emt 0:00:52] B23: Closed Sicilian: Lines without g3.} e6 {[%emt 0:00:30]} 7. b3 {[%emt 0:00:22]} g5 {[%emt 0:07:45]} 8. Bb2 {[%emt 0:00:17][%cal Oc3d5] The position is equal.} Bg7 {[%emt 0:00:06]} 9. Na4 {[%emt 0:00:12][%csl LRc5,LRg7][%cal Bc3a4,Ba4b2,Bb2c4,Bc4e5][%mdl 32]} Bxb2 {[%emt 0:00:08]} 10. Nxb2 {[%emt 0:00:08]} g4 {[%emt 0:03:30]} 11. Ne1 {[%emt 0:00:16]} h5 {[%emt 0:00:09] [#]} 12. f3 $146 {[%emt 0:03:53]} ({Predecessor:} 12. c3 Nge7 13. f4 d5 14. Qe2 Qc7 15. Bc2 b6 16. exd5 exd5 17. Nbd3 Rh6 18. f5 {1-0 Martinez Duany,L (2528)-Nagy,G (2474) Famalicao op 6th 2018 (4)}) 12... Nf6 {[%emt 0:06:28]} 13. Qe2 {[%emt 0:05:53] e5 is the strong threat.} d6 {[%emt 0:31:15]} 14. Qf2 {[%emt 0:09:09]} Ne5 {[%emt 0:09:56]} 15. Nc4 {[%emt 0:15:31]} Qe7 {[%emt 0:13:45]} (15... Nxc4 $16 16. Bxc4 Qe7) 16. Nxe5 $18 {[%emt 0:07:06]} dxe5 {[%emt 0:00:02]} 17. Be2 {[%emt 0:02:08]} (17. fxg4 $18 Nxg4 18. Qg3) 17... gxf3 {[%emt 0:08:05][%mdl 64] Remove Defender} 18. Nxf3 {[%emt 0:06:11]} (18. Qxf3 $6 Nd7 $16) 18... Nd7 {[%emt 0:02:54]} 19. Qg3 {[%emt 0:05:59]} h4 {[%emt 0:00:09]} 20. Qg7 {[%emt 0:00:40]} Qf8 {[%emt 0:00:03]} 21. Qxf8+ {[%emt 0:01:16]} Rxf8 {[%emt 0:00:02]} 22. Nxh4 {[%emt 0:00:40]} b5 {[%emt 0:01:24]} 23. a4 {[%emt 0:01:24]} b4 {[%emt 0:00:22]} 24. Rf2 {[%emt 0:05:05] Bh5 would be deadly.} Bb7 {[%emt 0:00:40]} 25. d3 {[%emt 0:05:25]} Rh8 {[%emt 0:00:21] Dodges Bh5} 26. g3 {[%emt 0:04:18] Black must now prevent Raf1.} Ke7 {[%emt 0:00:43]} 27. Raf1 {[%emt 0:00:20]} Rh7 {[%emt 0:00:04]} 28. Nf3 {[%emt 0:10:49]} Rg8 {[%emt 0:02:59] Prevents Ng5.} 29. Nd2 {[%emt 0:02:39]} Nb8 {[%emt 0:00:50][%cal Bd7b8,Bb8c6,Bc6d4][%mdl 32]} 30. Bf3 {[%emt 0:02:26]} Nc6 {[%emt 0:00:26]} 31. Bg2 {[%emt 0:00:14]} Nd4 {[%emt 0:00:45]} 32. Nf3 {[%emt 0:00:47]} Nc6 {[%emt 0:00:23]} 33. Rc1 {[%emt 0:01:03]} a5 {[%emt 0:00:33]} 34. Bf1 {[%emt 0:03:00]} f6 {[%emt 0:00:18]} 35. c3 {[%emt 0:01:20]} Rc8 {[%emt 0:00:04]} 36. Rfc2 {[%emt 0:00:56]} Rhh8 {[%emt 0:00:46]} 37. cxb4 {[%emt 0:03:11]} (37. Nd2 $142) 37... cxb4 $16 {[%emt 0:00:01]} 38. Rc5 {[%emt 0:01:44]} (38. Nd2 $16) 38... Nd4 $1 $14 {[%emt 0:00:56]} 39. Nxd4 {[%emt 0:01:26]} (39. Rxc8 {simplifies} Rxc8 40. Rxc8 Bxc8 41. Nxd4 exd4 42. Kf2) 39... exd4 {[%emt 0:00:02]} 40. Be2 {[%emt 0:01:10]} (40. Rxc8 {simplifies} Rxc8 41. Rxc8 Bxc8 42. Kf2) 40... Kd6 {[%emt 0:01:27]} 41. R5c4 {[%emt 0:05:03]} ({White should play} 41. Rxc8 $14 Rxc8 42. Rxc8 Bxc8 43. Bd1) 41... Rxc4 {[%emt 0:05:54]} 42. Rxc4 $11 {[%emt 0:16:00][%mdl 4096] Endgame KRB-KRB} e5 {[%emt 0:05:09][%cal Of6f5] Strongly threatening ...f5!} 43. h4 {[%emt 0:05:54] [#]} (43. Rc1 $11 {keeps the balance.}) 43... f5 $1 $17 {[%emt 0:03:05][%mdl 64] Deflection} 44. exf5 {[%emt 0:04:56]} Bd5 {[%emt 0:00:02]} 45. Rc1 {[%emt 0:00:30]} Bxb3 {[%emt 0:00:03] Black is more active.} 46. Bd1 {[%emt 0:00:31]} Bf7 {[%emt 0:14:55]} ({Much worse is} 46... Bxd1 $6 47. Rxd1 e4 48. dxe4 $11) (46... Ba2 $1 $17 {Threatens to win with ...b3.} 47. Rc2 Bb3) 47. Bf3 {[%emt 0:00:38] [#]} (47. Rc2 $11 {remains equal.}) 47... Rb8 $1 {[%emt 0:00:52][%mdl 1024] Hoping for ...b3. Black has strong compensation.} 48. Rc6+ {[%emt 0:00:28] [#]} Kd7 $1 {[%emt 0:00:02] aiming for ...b3.} 49. Rf6 $2 {[%emt 0:00:32]} (49. Ra6 $2 b3 50. Ra7+ (50. Rxa5 $2 {too greedy.} b2 $19) 50... Kd6 $19) (49. Rc2 $17) 49... Ke7 $19 {[%emt 0:00:31]} 50. Ra6 {[%emt 0:00:20]} b3 {[%emt 0:00:49][%cal Bb4b3,Bb3b2][%mdl 32] ( -> ...b2)} 51. f6+ {[%emt 0:00:04]} Kf8 {[%emt 0:02:57]} 52. Bd1 {[%emt 0:00:48]} b2 {[%emt 0:00:09]} 53. Bc2 {[%emt 0:00:01]} Rc8 {[%emt 0:00:15]} ({Not} 53... b1=B 54. Bxb1 Rxb1+ 55. Kf2 $19) 54. Bb1 {[%emt 0:00:50]} Rc1+ {[%emt 0:00:11]} 55. Kh2 {[%emt 0:00:55]} Rxb1 {[%emt 0:00:03]} 56. Ra8+ {[%emt 0:00:23]} Be8 {[%emt 0:00:04]} 57. Rb8 {[%emt 0:00:11]} Kf7 {[%emt 0:00:06] What a bad dream for White.   Weighted Error Value: White=0.50/Black=0.09 (flawless)} (57... e4 $142 58. f7 {[%mdl 64] Decoy} Kxf7 59. Rb7+ Kf6 60. Rh7 exd3 61. Rh6+ Kg7 62. Re6 d2 63. Re7+ Kf6 64. Rxe8 d1=Q 65. Rf8+ Ke7 66. Kh3 Kxf8 67. h5 Qxh5+ 68. Kg2 Qh1+ 69. Kf2 Qf1#) 0-1

[Event "Israeli Team-ch 2023"]
[Site "Petah Tikva"]
[Date "2023.02.03"]
[Round "5.11"]
[White "Gov, Guy"]
[Black "Steinberg, Nitzan"]
[Result "0-1"]
[ECO "B51"]
[WhiteElo "2103"]
[BlackElo "2537"]
[Annotator "TA"]
[PlyCount "56"]
[EventDate "2023.01.13"]
[EventCountry "ISR"]
[SourceTitle "playchess.com"]
[Source "ChessBase"]
[SourceQuality "1"]
[TimeControl "40/5400+30:1800+30"]

{[%evp 14,56,23,12,19,8,5,5,12,3,77,82,89,88,173,170,154,162,158,162,157,117,126,84,93,83,97,33,21,23,27,-35,0,-111,-113,-117,-127,-476,-466,-900,-763,-720,-719,-1150,-1164]} 1. e4 {[%emt 0:09:10]} c5 {[%emt 0:00:14]} 2. Nf3 {[%emt 0:00:11]} d6 {[%emt 0:01:07]} 3. d4 {[%emt 0:00:05]} cxd4 {[%emt 0:00:07]} 4. Qxd4 {[%emt 0:00:04]} Nf6 {[%emt 0:02:39]} 5. Nc3 {[%emt 0:00:08]} e5 {[%emt 0:07:29]} 6. Bb5+ {[%emt 0:12:36]} Nbd7 {[%emt 0:08:04]} 7. Qd3 {[%emt 0:05:42]} h6 {[%emt 0:08:40]} 8. Be3 {[%emt 0:00:21]} a6 {[%emt 0:01:44] B51: Sicilian: Moscow Variation (3 Bb5+) without 3...Bd7.} 9. Bc4 {[%emt 0:09:55]} b5 {[%emt 0:02:21]} 10. Bb3 {[%emt 0:00:41]} Bb7 {[%emt 0:00:24] The position is equal.} 11. a4 {[%emt 0:02:32]} b4 {[%emt 0:16:51] [#]} (11... Qa5 $1 $11 {remains equal.}) 12. Qc4 $1 $16 {[%emt 0:02:05][%csl Gb3,LRb4,LRf7][%cal Rc4f7]} d5 {[%emt 0:03:03]} 13. Nxd5 {[%emt 0:00:06]} Nxd5 {[%emt 0:00:28]} (13... Rc8 $16 {keeps fighting.} 14. Qe2 Nxd5 15. exd5 (15. Bxd5 Bxd5 16. exd5 Bc5 $16) 15... Bd6) 14. exd5 $18 {[%emt 0:00:05][%cal Od5d6]} Bd6 {[%emt 0:00:18] [#]} 15. Qg4 $146 {[%emt 0:02:28]} ({Predecessor:} 15. O-O-O O-O 16. g4 Rc8 17. Qe2 Re8 18. g5 e4 19. Nd4 Nc5 20. gxh6 g6 21. h4 {1-0 Corrales Jimenez,Z (2151)-Quesada Perez,L (2517) Iberoamerican-ch 8th 2022 (8)}) 15... g6 {[%emt 0:14:50]} 16. O-O-O {[%emt 0:04:58]} h5 {[%emt 0:01:35]} 17. Qh3 {[%emt 0:02:17]} Bc8 {[%emt 0:01:45][%cal Bb7c8,Bc8f5,Bf5d7][%mdl 32]} 18. Bg5 {[%emt 0:08:11]} Qc7 {[%emt 0:06:56]} 19. Qh4 {[%emt 0:04:08]} Nc5 {[%emt 0:00:35]} 20. Qc4 {[%emt 0:01:14]} (20. Qxb4 $2 {too greedy.} Nd3+ 21. Rxd3 Bxb4 $19) ({White should play} 20. Kb1 $16) 20... O-O {[%emt 0:03:05]} 21. Be3 {[%emt 0:09:52] And now Bxc5 would win.} (21. Qxb4 $2 {is the wrong capture.} Nd3+ 22. Rxd3 Bxb4 $19) 21... Nxb3+ {[%emt 0:01:52]} 22. Qxb3 {[%emt 0:00:01]} (22. cxb3 $11 Qe7 23. Kb1) 22... Bf5 {[%emt 0:02:58] White must now prevent ...Rfc8.} 23. h3 {[%emt 0:06:37]} (23. Kb1 $11) 23... Rfc8 $17 {[%emt 0:01:48][%cal Rf5c2]} 24. Rd2 {[%emt 0:00:05] [#]} Qa5 $1 {[%emt 0:01:29] Threatens to win with ...Rab8.} 25. Nh4 $2 {[%emt 0:07:06][%mdl 8192]} (25. Qa2 $17) 25... Bd7 $19 {[%emt 0:00:35] Black is clearly winning.} 26. Qd3 {[%emt 0:00:04]} (26. Qa2 $142 b3 27. Qxb3) 26... Qxa4 {[%emt 0:01:08][%cal Ra4a1]} 27. Kb1 {[%emt 0:02:13] [#] Against Qa1+} b3 $1 {[%emt 0:00:09][%mdl 576] Discovered Attack} 28. cxb3 {[%emt 0:00:04]} (28. Qxb3 Qxh4) 28... Qxh4 {[%emt 0:00:05] Black used his chance.   Weighted Error Value: White=0.98/Black=0.17 (very precise)} 0-1

[Event "Israeli Team-ch 2023"]
[Site "Petah Tikva"]
[Date "2023.02.03"]
[Round "5.12"]
[White "Huzman, Alexander"]
[Black "Linker, Mikhail"]
[Result "1-0"]
[ECO "B37"]
[WhiteElo "2526"]
[BlackElo "2297"]
[Annotator "TA"]
[PlyCount "73"]
[EventDate "2023.01.13"]
[EventCountry "ISR"]
[SourceTitle "playchess.com"]
[Source "ChessBase"]
[SourceQuality "1"]
[TimeControl "40/5400+30:1800+30"]

{[%evp 16,73,43,-2,47,37,56,74,87,47,70,27,33,38,84,56,71,76,79,70,112,89,109,125,108,114,186,171,167,135,136,129,231,227,245,237,248,265,267,261,238,241,225,212,197,200,179,85,86,85,450,453,491,488,561,546,540,533,1270,1166]} 1. Nf3 {[%emt 0:00:03]} Nf6 {[%emt 0:09:41]} 2. c4 {[%emt 0:00:14]} c5 {[%emt 0:00:35]} 3. Nc3 {[%emt 0:00:51]} g6 {[%emt 0:02:00]} 4. d4 {[%emt 0:01:42]} cxd4 {[%emt 0:00:34]} 5. Nxd4 {[%emt 0:00:10][%cal Bf3d4,Bd4c2,Bc2a3,Ba3b5][%mdl 32]} Bg7 {[%emt 0:02:30]} 6. e4 {[%emt 0:01:33]} d6 {[%emt 0:00:24]} 7. Be2 {[%emt 0:03:31]} Nc6 {[%emt 0:00:43]} 8. Nc2 {[%emt 0:04:18]} O-O {[%emt 0:02:42]} 9. O-O {[%emt 0:00:31]} a5 {[%emt 0:15:27] B37: Sicilian: Maroczy Bind with 5...Bg7, sidelines.} (9... Nd7 $11) 10. Be3 {[%emt 0:10:04]} a4 {[%emt 0:10:04]} 11. Na3 {[%emt 0:05:37]} Be6 {[%emt 0:08:38] White is better.} 12. f3 {[%emt 0:04:16]} Qa5 {[%emt 0:02:07]} 13. Nd5 {[%emt 0:00:16] aiming for Bb6.} Nd7 {[%emt 0:01:53] Prevents Bb6.} 14. Rb1 {[%emt 0:00:45] [#]} Rfc8 $146 {[%emt 0:02:32]} (14... f5 $14) ({Predecessor:} 14... f5 15. Nb5 Rac8 16. c5 dxc5 17. Nf4 Bxa2 18. Qxd7 Nd4 19. Bxd4 Rfd8 20. Qxe7 cxd4 21. Ne6 {1-0 Balint,P (2067)-Oberhuber,A (2062) AUT-ch Vienna 2022 (7)}) 15. Kh1 {[%emt 0:01:45]} Nc5 {[%emt 0:10:20]} 16. Nb5 {[%emt 0:04:13]} Qd8 {[%emt 0:05:50]} 17. Qd2 {[%emt 0:01:16]} Ra6 {[%emt 0:01:57]} 18. Rfd1 {[%emt 0:03:19] White has more active pieces.} Ne5 {[%emt 0:02:03]} 19. b4 {[%emt 0:11:33]} axb3 {[%emt 0:00:04]} 20. axb3 {[%emt 0:00:03][%cal Ba2b3,Bb3b4][%mdl 32]} Nc6 {[%emt 0:08:33]} (20... Raa8 $16) 21. b4 $18 {[%emt 0:06:18]} Na4 {[%emt 0:00:13]} 22. Rdc1 {[%emt 0:01:25]} Ne5 {[%emt 0:04:51]} 23. f4 {[%emt 0:08:29]} Ng4 {[%emt 0:02:49]} (23... Nd7 $16 {is a better defense.} 24. Nd4 Raa8) 24. Bxg4 {[%emt 0:00:39]} Bxg4 {[%emt 0:00:05] [#]} 25. f5 {[%emt 0:00:06][%mdl 512] h3 would be deadly.} e6 {[%emt 0:01:52] [#]} 26. fxe6 {[%emt 0:01:42]} Bxe6 {[%emt 0:00:43] [#]} (26... fxe6 $2 27. Bg5 Qe8 28. Ne7+ Kh8 29. Nxc8 Qxc8 30. h3 $18) 27. Bg5 $1 {[%emt 0:00:06]} f6 {[%emt 0:01:03]} 28. Bf4 {[%emt 0:00:16] Strongly threatening Nxd6.} Kh8 {[%emt 0:00:45]} 29. Ne3 {[%emt 0:00:44] Excellent horsemanship.} Bf8 {[%emt 0:01:31]} 30. Qd4 {[%emt 0:06:57]} Nb6 {[%emt 0:01:57]} 31. Bxd6 {[%emt 0:10:24]} ({Worse is} 31. Nxd6 Bxd6 32. Bxd6 Nxc4 $11) (31. h3 $18 {has better winning chances.}) 31... Nxc4 $16 {[%emt 0:00:38]} 32. Bxf8 {[%emt 0:05:39]} Qxd4 {[%emt 0:00:23][%mdl 8192] Loses the game.} (32... Nxe3 $16 {is tougher.} 33. Qxd8 Rxd8) 33. Nxd4 $18 {[%emt 0:01:20] White is clearly winning.} Nxe3 {[%emt 0:00:23]} 34. b5 {[%emt 0:00:15]} Rxc1+ {[%emt 0:01:08]} 35. Rxc1 {[%emt 0:00:13]} Ra4 {[%emt 0:00:14]} 36. Nxe6 {[%emt 0:01:01]} Rxe4 {[%emt 0:00:09] [#]} 37. Rc8 $1 {[%emt 0:01:45] Weighted Error Value: White=0.13 (very precise) /Black=0.44} 1-0